[Event "*** SCC Grand Prix: Titled Tuesday Blitz"]
[Site "Chess.com"]
[Date "2020.10.13"]
[Round "8"]
[White "korkmaz16"]
[Black "Matols"]
[Result "1-0"]
[WhiteElo "2372"]
[BlackElo "2231"]
[TimeControl "180+1"]
[EndTime "11:33:42 PDT"]
[Termination "korkmaz16 won on time"]

1. e4 {[%clk 0:03:00.9]} 1... e6 {[%clk 0:02:57.8]} 2. d4 {[%clk 0:02:58.6]}
2... d5 {[%clk 0:02:57.9]} 3. e5 {[%clk 0:02:57.8]} 3... c5 {[%clk 0:02:57.3]}
4. c3 {[%clk 0:02:58.2]} 4... Qb6 {[%clk 0:02:55.7]} 5. Nf3 {[%clk 0:02:58.5]}
5... Nc6 {[%clk 0:02:54.5]} 6. a3 {[%clk 0:02:55.7]} 6... Nh6 {[%clk 0:02:52.9]}
7. b4 {[%clk 0:02:55.2]} 7... cxd4 {[%clk 0:02:52.2]} 8. cxd4 {[%clk 0:02:55.2]}
8... Nf5 {[%clk 0:02:52.2]} 9. Bb2 {[%clk 0:02:53.9]} 9... Bd7 {[%clk 0:02:45]}
10. g4 {[%clk 0:02:53]} 10... Nfe7 {[%clk 0:02:41.9]} 11. Nc3 {[%clk 0:02:47.9]}
11... Na5 {[%clk 0:02:37.8]} 12. Nd2 {[%clk 0:02:31.5]} 12... h5 {[%clk
0:02:25.3]} 13. Rb1 {[%clk 0:02:06.2]} 13... Nc4 {[%clk 0:02:17.4]} 14. Nxc4
{[%clk 0:02:04.3]} 14... dxc4 {[%clk 0:02:17.6]} 15. Bg2 {[%clk 0:01:58.4]}
15... Bc6 {[%clk 0:02:14.4]} 16. d5 {[%clk 0:01:51.1]} 16... Nxd5 {[%clk
0:02:08.9]} 17. Nxd5 {[%clk 0:01:51]} 17... exd5 {[%clk 0:02:07]} 18. Bxd5
{[%clk 0:01:51]} 18... O-O-O {[%clk 0:02:02.6]} 19. Bd4 {[%clk 0:01:43.6]} 19...
Qc7 {[%clk 0:01:38.8]} 20. Bxc6 {[%clk 0:01:41.8]} 20... Qxc6 {[%clk 0:01:35.2]}
21. O-O {[%clk 0:01:39]} 21... hxg4 {[%clk 0:01:31.5]} 22. Qxg4+ {[%clk
0:01:37.2]} 22... Kb8 {[%clk 0:01:21.8]} 23. e6 {[%clk 0:01:29.7]} 23... Bd6
{[%clk 0:01:13.4]} 24. h3 {[%clk 0:01:22.2]} 24... fxe6 {[%clk 0:01:11.3]} 25.
b5 {[%clk 0:01:18.4]} 25... Qd5 {[%clk 0:01:07]} 26. Rfd1 {[%clk 0:01:17.7]}
26... Qh5 {[%clk 0:00:56.3]} 27. Qxe6 {[%clk 0:01:01.3]} 27... Qxh3 {[%clk
0:00:35.3]} 28. Qxh3 {[%clk 0:01:00.5]} 28... Rxh3 {[%clk 0:00:34.7]} 29. Be5
{[%clk 0:01:00.9]} 29... Kc7 {[%clk 0:00:29]} 30. Rbc1 {[%clk 0:00:58]} 30... c3
{[%clk 0:00:19.9]} 31. Bxc3 {[%clk 0:00:49.6]} 31... Bh2+ {[%clk 0:00:15.8]} 32.
Kg2 {[%clk 0:00:49.2]} 32... Rxd1 {[%clk 0:00:14.3]} 33. Be5+ {[%clk 0:00:45.7]}
33... Kb6 {[%clk 0:00:13.5]} 34. Rxd1 {[%clk 0:00:46]} 34... Rxa3 {[%clk
0:00:09.4]} 35. Bxh2 {[%clk 0:00:43.6]} 35... Kxb5 {[%clk 0:00:09.8]} 36. Rb1+
{[%clk 0:00:41.9]} 36... Kc6 {[%clk 0:00:09.8]} 37. Rc1+ {[%clk 0:00:40.8]}
37... Kb5 {[%clk 0:00:06.7]} 38. Rc7 {[%clk 0:00:40.8]} 38... b6 {[%clk
0:00:06.3]} 39. Rxg7 {[%clk 0:00:41]} 39... a5 {[%clk 0:00:06.1]} 40. Bd6 {[%clk
0:00:38.5]} 40... Rb3 {[%clk 0:00:05.9]} 41. f4 {[%clk 0:00:38]} 41... a4 {[%clk
0:00:06.2]} 42. f5 {[%clk 0:00:38.3]} 42... a3 {[%clk 0:00:06.6]} 43. f6 {[%clk
0:00:38.2]} 43... a2 {[%clk 0:00:05]} 44. Be5 {[%clk 0:00:38.5]} 44... Ra3
{[%clk 0:00:02.8]} 45. f7 {[%clk 0:00:38.1]} 45... Ra8 {[%clk 0:00:01.3]} 46.
Rg8 {[%clk 0:00:38.1]} 1-0

[Event "*** SCC Grand Prix: Titled Tuesday Blitz"]
[Site "Chess.com"]
[Date "2020.10.13"]
[Round "8"]
[White "kuban1991"]
[Black "Bigfish1995"]
[Result "0-1"]
[WhiteElo "2818"]
[BlackElo "3094"]
[TimeControl "180+1"]
[EndTime "11:33:45 PDT"]
[Termination "Bigfish1995 won on time"]

1. Nf3 {[%clk 0:03:00.9]} 1... d5 {[%clk 0:02:34.8]} 2. g3 {[%clk 0:03:00.7]}
2... c5 {[%clk 0:02:34.6]} 3. Bg2 {[%clk 0:03:00.9]} 3... Nf6 {[%clk 0:02:35.3]}
4. O-O {[%clk 0:03:00.6]} 4... e6 {[%clk 0:02:35.3]} 5. d3 {[%clk 0:03:00.8]}
5... Be7 {[%clk 0:02:34.7]} 6. Nbd2 {[%clk 0:03:01.7]} 6... O-O {[%clk
0:02:33.8]} 7. e4 {[%clk 0:03:02.2]} 7... Nc6 {[%clk 0:02:33.9]} 8. e5 {[%clk
0:03:00.8]} 8... Ne8 {[%clk 0:02:34.2]} 9. c4 {[%clk 0:02:59]} 9... Nc7 {[%clk
0:02:29.1]} 10. h4 {[%clk 0:02:54.6]} 10... b5 {[%clk 0:02:29.2]} 11. b3 {[%clk
0:02:54.1]} 11... a5 {[%clk 0:02:28.3]} 12. Bb2 {[%clk 0:01:56]} 12... a4 {[%clk
0:02:26.4]} 13. cxb5 {[%clk 0:01:56.3]} 13... Nxb5 {[%clk 0:02:25.1]} 14. bxa4
{[%clk 0:01:56.5]} 14... Nc7 {[%clk 0:02:25.3]} 15. Rc1 {[%clk 0:01:44.8]} 15...
Bd7 {[%clk 0:02:20.1]} 16. Nb3 {[%clk 0:01:42]} 16... Na6 {[%clk 0:02:20.1]} 17.
Ba3 {[%clk 0:01:31.3]} 17... Qb6 {[%clk 0:02:15.9]} 18. d4 {[%clk 0:01:27.9]}
18... c4 {[%clk 0:02:15.6]} 19. Bxe7 {[%clk 0:01:12.1]} 19... Nxe7 {[%clk
0:02:16.5]} 20. Nbd2 {[%clk 0:01:09.9]} 20... Nb4 {[%clk 0:02:16.7]} 21. Ng5
{[%clk 0:00:48.1]} 21... h6 {[%clk 0:02:16.1]} 22. Nh3 {[%clk 0:00:48.1]} 22...
Nxa2 {[%clk 0:02:07.7]} 23. Rb1 {[%clk 0:00:41.3]} 23... Qxd4 {[%clk 0:02:07.6]}
24. Rb7 {[%clk 0:00:39.1]} 24... Bxa4 {[%clk 0:02:06.5]} 25. Qe1 {[%clk
0:00:36.1]} 25... Ng6 {[%clk 0:02:06.3]} 26. Nf3 {[%clk 0:00:33.2]} 26... Qc5
{[%clk 0:02:01.9]} 27. h5 {[%clk 0:00:32.9]} 27... Ne7 {[%clk 0:02:01.7]} 28.
Qd2 {[%clk 0:00:24.4]} 28... Bb3 {[%clk 0:01:58.3]} 29. Nd4 {[%clk 0:00:20.1]}
29... Rfb8 {[%clk 0:01:57.8]} 30. Rxb8+ {[%clk 0:00:14.9]} 30... Rxb8 {[%clk
0:01:57.5]} 31. Nf4 {[%clk 0:00:15.1]} 31... c3 {[%clk 0:01:48.8]} 32. Nxb3
{[%clk 0:00:14.3]} 32... cxd2 {[%clk 0:01:49]} 33. Nxc5 {[%clk 0:00:14.1]} 33...
Nc3 {[%clk 0:01:49.7]} 34. Bf3 {[%clk 0:00:13.5]} 34... Nc6 {[%clk 0:01:47.5]}
35. Nfd3 {[%clk 0:00:12.1]} 35... Nd4 {[%clk 0:01:47.6]} 36. Bg4 {[%clk
0:00:11.1]} 36... Nde2+ {[%clk 0:01:42.6]} 37. Kg2 {[%clk 0:00:11.2]} 37... d1=Q
{[%clk 0:01:21.5]} 38. Rxd1 {[%clk 0:00:09.7]} 38... Nxd1 {[%clk 0:01:22.4]} 39.
Bxe2 {[%clk 0:00:10.3]} 39... Nc3 {[%clk 0:01:23.1]} 40. Bg4 {[%clk 0:00:08.6]}
40... Ra8 {[%clk 0:01:23.7]} 41. Nb7 {[%clk 0:00:05.3]} 41... Ra2 {[%clk
0:01:22.3]} 42. Nbc5 {[%clk 0:00:04.2]} 42... Rd2 {[%clk 0:01:21.8]} 43. Kf3
{[%clk 0:00:03.4]} 43... Nd1 {[%clk 0:01:18.8]} 44. Kg2 {[%clk 0:00:02.6]} 44...
Ne3+ {[%clk 0:01:18.3]} 45. Kh3 {[%clk 0:00:02.3]} 45... Nc4 {[%clk 0:01:17.1]}
46. Kg2 {[%clk 0:00:02]} 46... Kf8 {[%clk 0:01:15.5]} 47. Kh3 {[%clk 0:00:02]}
47... Ke7 {[%clk 0:01:15.6]} 48. Kg2 {[%clk 0:00:02.3]} 48... Rc2 {[%clk
0:01:15.4]} 49. Kf3 {[%clk 0:00:02.7]} 49... Nxe5+ {[%clk 0:01:10.8]} 50. Nxe5
{[%clk 0:00:03.6]} 50... Rxc5 {[%clk 0:01:11.3]} 51. Nd3 {[%clk 0:00:04.3]}
51... Rc3 {[%clk 0:01:09.3]} 52. Ke2 {[%clk 0:00:04.6]} 52... Kd6 {[%clk
0:01:09.5]} 53. f4 {[%clk 0:00:04.4]} 53... f6 {[%clk 0:01:09.9]} 54. Bh3 {[%clk
0:00:03.3]} 54... e5 {[%clk 0:01:09.7]} 55. fxe5+ {[%clk 0:00:04]} 55... fxe5
{[%clk 0:01:10.6]} 56. Bf5 {[%clk 0:00:04.1]} 56... e4 {[%clk 0:01:10.5]} 57.
Nf4 {[%clk 0:00:03.3]} 57... Rxg3 {[%clk 0:01:10.4]} 58. Bg6 {[%clk 0:00:03.7]}
58... Ke5 {[%clk 0:01:10.1]} 0-1

[Event "*** SCC Grand Prix: Titled Tuesday Blitz"]
[Site "Chess.com"]
[Date "2020.10.13"]
[Round "8"]
[White "poppy73"]
[Black "aloe_normansen"]
[Result "0-1"]
[WhiteElo "2229"]
[BlackElo "2353"]
[TimeControl "180+1"]
[EndTime "11:33:45 PDT"]
[Termination "aloe_normansen won on time"]

1. e4 {[%clk 0:03:00.8]} 1... c5 {[%clk 0:03:00.2]} 2. Nf3 {[%clk 0:03:00.8]}
2... d6 {[%clk 0:03:00.7]} 3. d4 {[%clk 0:03:01.3]} 3... cxd4 {[%clk 0:03:01.6]}
4. Nxd4 {[%clk 0:03:02.2]} 4... Nf6 {[%clk 0:03:01.9]} 5. Nc3 {[%clk 0:03:02.7]}
5... a6 {[%clk 0:03:02.4]} 6. Be2 {[%clk 0:03:01.5]} 6... e6 {[%clk 0:03:02]} 7.
O-O {[%clk 0:02:57.5]} 7... Be7 {[%clk 0:02:59.7]} 8. f4 {[%clk 0:02:54.5]} 8...
Qc7 {[%clk 0:02:58.7]} 9. Kh1 {[%clk 0:02:51.9]} 9... Nc6 {[%clk 0:02:57.3]} 10.
a4 {[%clk 0:02:31]} 10... O-O {[%clk 0:02:55.7]} 11. Be3 {[%clk 0:02:26.6]}
11... Nxd4 {[%clk 0:02:53.2]} 12. Qxd4 {[%clk 0:02:22.7]} 12... e5 {[%clk
0:02:52.7]} 13. Qd3 {[%clk 0:02:05.7]} 13... Bd7 {[%clk 0:02:27.8]} 14. f5
{[%clk 0:01:54.6]} 14... b5 {[%clk 0:02:15.9]} 15. Bg5 {[%clk 0:01:30.6]} 15...
Bc6 {[%clk 0:02:14.9]} 16. Bxf6 {[%clk 0:01:16.7]} 16... Bxf6 {[%clk 0:02:15.8]}
17. axb5 {[%clk 0:00:54.1]} 17... axb5 {[%clk 0:02:16.7]} 18. Nxb5 {[%clk
0:00:52.8]} 18... Bxb5 {[%clk 0:02:14.5]} 19. Qxb5 {[%clk 0:00:52.8]} 19... Rab8
{[%clk 0:01:44.1]} 20. Qc4 {[%clk 0:00:50.1]} 20... Qb7 {[%clk 0:01:16.5]} 21.
b3 {[%clk 0:00:40.2]} 21... Rfc8 {[%clk 0:01:11.4]} 22. Qd3 {[%clk 0:00:38.9]}
22... d5 {[%clk 0:01:06.9]} 23. Qxd5 {[%clk 0:00:24.8]} 23... Qb4 {[%clk
0:00:51.4]} 24. Bc4 {[%clk 0:00:20.4]} 24... Qe7 {[%clk 0:00:33.7]} 25. Rfd1
{[%clk 0:00:14.6]} 25... Rd8 {[%clk 0:00:33.4]} 26. Qa5 {[%clk 0:00:10]} 26...
h5 {[%clk 0:00:30.4]} 27. Rxd8+ {[%clk 0:00:08.5]} 27... Rxd8 {[%clk 0:00:31.3]}
28. Qa7 {[%clk 0:00:07.4]} 28... Rd7 {[%clk 0:00:29]} 29. Qa8+ {[%clk
0:00:04.2]} 29... Kh7 {[%clk 0:00:28.9]} 30. Bd5 {[%clk 0:00:03.3]} 30... h4
{[%clk 0:00:23.1]} 31. h3 {[%clk 0:00:03]} 31... Qb4 {[%clk 0:00:21.8]} 32. Qa6
{[%clk 0:00:02.6]} 32... Qc3 {[%clk 0:00:18.9]} 33. Qe2 {[%clk 0:00:02.2]} 33...
Qxa1+ {[%clk 0:00:18.6]} 0-1

[Event "*** SCC Grand Prix: Titled Tuesday Blitz"]
[Site "Chess.com"]
[Date "2020.10.13"]
[Round "8"]
[White "picturesquecheck"]
[Black "ajdemipopushi"]
[Result "1-0"]
[WhiteElo "2228"]
[BlackElo "2320"]
[TimeControl "180+1"]
[EndTime "11:33:45 PDT"]
[Termination "picturesquecheck won on time"]

1. e4 {[%clk 0:03:00.8]} 1... c5 {[%clk 0:02:59.6]} 2. Nf3 {[%clk 0:02:58.4]}
2... g6 {[%clk 0:02:59.9]} 3. d4 {[%clk 0:02:58.7]} 3... cxd4 {[%clk 0:03:00.1]}
4. Nxd4 {[%clk 0:02:59.6]} 4... Bg7 {[%clk 0:03:00.4]} 5. Nc3 {[%clk 0:02:59.6]}
5... Nc6 {[%clk 0:03:00.7]} 6. Be3 {[%clk 0:02:59.4]} 6... Nf6 {[%clk
0:03:00.5]} 7. Bc4 {[%clk 0:02:58.1]} 7... O-O {[%clk 0:02:59.8]} 8. Bb3 {[%clk
0:02:56.7]} 8... Ng4 {[%clk 0:02:57.9]} 9. Qxg4 {[%clk 0:02:55.4]} 9... Nxd4
{[%clk 0:02:57.6]} 10. O-O-O {[%clk 0:02:53.2]} 10... d6 {[%clk 0:02:47.1]} 11.
Qg3 {[%clk 0:02:46.2]} 11... Nxb3+ {[%clk 0:02:44.9]} 12. cxb3 {[%clk
0:02:42.2]} 12... Be6 {[%clk 0:02:36.8]} 13. Bd4 {[%clk 0:02:41.3]} 13... Qa5
{[%clk 0:01:53.6]} 14. Kb1 {[%clk 0:02:39.2]} 14... Rac8 {[%clk 0:01:48.9]} 15.
Bxg7 {[%clk 0:02:36.9]} 15... Kxg7 {[%clk 0:01:48.5]} 16. h4 {[%clk 0:02:36.6]}
16... h5 {[%clk 0:01:48]} 17. f4 {[%clk 0:02:34.2]} 17... Bg4 {[%clk 0:01:44.6]}
18. Rd5 {[%clk 0:02:31.6]} 18... Qb6 {[%clk 0:01:26.7]} 19. f5 {[%clk
0:02:19.2]} 19... Rc6 {[%clk 0:00:53.8]} 20. Rf1 {[%clk 0:02:12]} 20... Qc7
{[%clk 0:00:43.1]} 21. Nb5 {[%clk 0:01:59.1]} 21... Qb8 {[%clk 0:00:40.2]} 22.
Qe3 {[%clk 0:01:32.5]} 22... a6 {[%clk 0:00:37.7]} 23. Nd4 {[%clk 0:01:29.9]}
23... Rc5 {[%clk 0:00:34.5]} 24. fxg6 {[%clk 0:01:28.9]} 24... fxg6 {[%clk
0:00:33.8]} 25. Rf4 {[%clk 0:01:14.3]} 25... Rxf4 {[%clk 0:00:30]} 26. Qxf4
{[%clk 0:01:04.7]} 26... e5 {[%clk 0:00:28.5]} 27. Qg5 {[%clk 0:00:22.7]} 27...
exd4 {[%clk 0:00:19.8]} 28. Qe7+ {[%clk 0:00:20.9]} 28... Kg8 {[%clk 0:00:17.8]}
29. Rxd6 {[%clk 0:00:20.2]} 29... Rc6 {[%clk 0:00:02.7]} 30. Rd8+ {[%clk
0:00:20.2]} 30... Qxd8 {[%clk 0:00:02.6]} 31. Qxd8+ {[%clk 0:00:21.1]} 31... Kg7
{[%clk 0:00:02.7]} 32. Qxd4+ {[%clk 0:00:22]} 32... Kh7 {[%clk 0:00:02.5]} 33.
a3 {[%clk 0:00:22.6]} 33... Be6 {[%clk 0:00:01.9]} 34. e5 {[%clk 0:00:22.7]}
34... Bf5+ {[%clk 0:00:01.6]} 35. Ka2 {[%clk 0:00:16.3]} 35... Rc1 {[%clk
0:00:01.5]} 36. b4 {[%clk 0:00:16.4]} 36... b5 {[%clk 0:00:01.1]} 37. b3 {[%clk
0:00:16.2]} 1-0

[Event "*** SCC Grand Prix: Titled Tuesday Blitz"]
[Site "Chess.com"]
[Date "2020.10.13"]
[Round "8"]
[White "kintoho"]
[Black "ExcitingTrap"]
[Result "0-1"]
[WhiteElo "2488"]
[BlackElo "2326"]
[TimeControl "180+1"]
[EndTime "11:33:46 PDT"]
[Termination "ExcitingTrap won by checkmate"]

1. e4 {[%clk 0:02:57.4]} 1... e6 {[%clk 0:02:59.9]} 2. d4 {[%clk 0:02:57]} 2...
d5 {[%clk 0:03:00.3]} 3. exd5 {[%clk 0:02:57.1]} 3... exd5 {[%clk 0:03:00.1]} 4.
c4 {[%clk 0:02:57.3]} 4... Bb4+ {[%clk 0:02:54.9]} 5. Nc3 {[%clk 0:02:57]} 5...
Ne7 {[%clk 0:02:52.3]} 6. Bd3 {[%clk 0:02:56.8]} 6... dxc4 {[%clk 0:02:51.4]} 7.
Bxc4 {[%clk 0:02:56.1]} 7... O-O {[%clk 0:02:51.2]} 8. Nf3 {[%clk 0:02:56.2]}
8... Bg4 {[%clk 0:02:48.4]} 9. Be3 {[%clk 0:02:56.2]} 9... Nf5 {[%clk
0:02:41.8]} 10. O-O {[%clk 0:02:52.9]} 10... Nc6 {[%clk 0:02:38.1]} 11. a3
{[%clk 0:02:52.6]} 11... Ba5 {[%clk 0:02:35.1]} 12. d5 {[%clk 0:02:41.6]} 12...
Ne5 {[%clk 0:02:12.2]} 13. Be2 {[%clk 0:02:41.3]} 13... Ng6 {[%clk 0:02:03]} 14.
Bg5 {[%clk 0:02:32.8]} 14... Qd6 {[%clk 0:01:52.6]} 15. h3 {[%clk 0:02:32.1]}
15... Bxf3 {[%clk 0:01:48.8]} 16. Bxf3 {[%clk 0:02:32.4]} 16... Rfe8 {[%clk
0:01:41.8]} 17. Qb3 {[%clk 0:02:25.1]} 17... Nd4 {[%clk 0:01:34.6]} 18. Qd1
{[%clk 0:02:19.8]} 18... Bb6 {[%clk 0:01:33.1]} 19. Be4 {[%clk 0:02:13]} 19...
f5 {[%clk 0:01:20]} 20. Bb1 {[%clk 0:02:05.1]} 20... Kh8 {[%clk 0:00:57.9]} 21.
Be3 {[%clk 0:02:03.3]} 21... Qf6 {[%clk 0:00:55.4]} 22. Na4 {[%clk 0:01:51.2]}
22... Nb5 {[%clk 0:00:45.5]} 23. Nxb6 {[%clk 0:01:47.1]} 23... axb6 {[%clk
0:00:46.4]} 24. Bc1 {[%clk 0:01:41]} 24... Rad8 {[%clk 0:00:43.4]} 25. a4 {[%clk
0:01:37.6]} 25... Nd4 {[%clk 0:00:39.2]} 26. Ba2 {[%clk 0:01:32.2]} 26... Ne2+
{[%clk 0:00:36.8]} 27. Kh1 {[%clk 0:01:31.4]} 27... f4 {[%clk 0:00:36]} 28. Qd3
{[%clk 0:01:21.6]} 28... Nd4 {[%clk 0:00:33.3]} 29. Bd2 {[%clk 0:01:17.2]} 29...
f3 {[%clk 0:00:31.9]} 30. Bc3 {[%clk 0:01:16.4]} 30... fxg2+ {[%clk 0:00:31.7]}
31. Kg1 {[%clk 0:01:10.8]} 31... gxf1=Q+ {[%clk 0:00:31.6]} 32. Kxf1 {[%clk
0:01:09.9]} 32... c5 {[%clk 0:00:24]} 33. dxc6 {[%clk 0:01:09.2]} 33... bxc6
{[%clk 0:00:24.1]} 34. Rd1 {[%clk 0:01:07.6]} 34... c5 {[%clk 0:00:24]} 35. b4
{[%clk 0:01:07.4]} 35... Nf4 {[%clk 0:00:23]} 36. Qg3 {[%clk 0:01:05]} 36...
Nfe2 {[%clk 0:00:19.9]} 37. Qd3 {[%clk 0:00:58.9]} 37... Rf8 {[%clk 0:00:19]}
38. f3 {[%clk 0:00:53.1]} 38... Qxf3+ {[%clk 0:00:17.1]} 39. Qxf3 {[%clk
0:00:52.7]} 39... Rxf3+ {[%clk 0:00:17]} 40. Kg2 {[%clk 0:00:52.9]} 40... Rxc3
{[%clk 0:00:17.5]} 41. bxc5 {[%clk 0:00:53.3]} 41... bxc5 {[%clk 0:00:18]} 42.
a5 {[%clk 0:00:53.3]} 42... Nf4+ {[%clk 0:00:17.8]} 43. Kf2 {[%clk 0:00:52.6]}
43... Nxh3+ {[%clk 0:00:17]} 44. Ke1 {[%clk 0:00:50.3]} 44... Re8+ {[%clk
0:00:16.8]} 45. Kd2 {[%clk 0:00:50.4]} 45... Rc2+ {[%clk 0:00:17.4]} 46. Kd3
{[%clk 0:00:50.8]} 46... Rxa2 {[%clk 0:00:17.7]} 47. Kc4 {[%clk 0:00:51.1]}
47... Rxa5 {[%clk 0:00:17.9]} 48. Kd5 {[%clk 0:00:50.8]} 48... Nf4+ {[%clk
0:00:17.8]} 49. Kd6 {[%clk 0:00:50]} 49... h6 {[%clk 0:00:16.8]} 50. Rf1 {[%clk
0:00:49]} 50... Re6+ {[%clk 0:00:16.8]} 51. Kc7 {[%clk 0:00:47.6]} 51... g5
{[%clk 0:00:17.2]} 52. Rb1 {[%clk 0:00:46.3]} 52... Ra7+ {[%clk 0:00:17]} 53.
Kb8 {[%clk 0:00:43.2]} 53... Nc6+ {[%clk 0:00:17]} 54. Kc8 {[%clk 0:00:42.8]}
54... Re8# {[%clk 0:00:17.8]} 0-1

[Event "*** SCC Grand Prix: Titled Tuesday Blitz"]
[Site "Chess.com"]
[Date "2020.10.13"]
[Round "8"]
[White "AldokhinIvan"]
[Black "anpospan"]
[Result "1-0"]
[WhiteElo "2551"]
[BlackElo "2384"]
[TimeControl "180+1"]
[EndTime "11:33:47 PDT"]
[Termination "AldokhinIvan won by resignation"]

1. e4 {[%clk 0:02:30.9]} 1... b6 {[%clk 0:02:57.2]} 2. d4 {[%clk 0:02:29.4]}
2... Bb7 {[%clk 0:02:56.9]} 3. Nc3 {[%clk 0:02:30.3]} 3... e6 {[%clk 0:02:56.9]}
4. Bd3 {[%clk 0:02:29.9]} 4... d6 {[%clk 0:02:50]} 5. Qe2 {[%clk 0:02:29.8]}
5... e5 {[%clk 0:02:49.4]} 6. dxe5 {[%clk 0:02:28.8]} 6... dxe5 {[%clk 0:02:49]}
7. Nf3 {[%clk 0:02:29.7]} 7... Nd7 {[%clk 0:02:48.3]} 8. Bc4 {[%clk 0:02:26.6]}
8... Be7 {[%clk 0:02:41.3]} 9. Be3 {[%clk 0:02:00.8]} 9... Ngf6 {[%clk
0:02:39.6]} 10. O-O-O {[%clk 0:02:00.6]} 10... Ng4 {[%clk 0:02:36.1]} 11. Bd2
{[%clk 0:01:40.8]} 11... O-O {[%clk 0:02:32.5]} 12. h3 {[%clk 0:01:40.5]} 12...
Ngf6 {[%clk 0:02:32.4]} 13. Bg5 {[%clk 0:01:40.5]} 13... Qe8 {[%clk 0:02:21.8]}
14. g4 {[%clk 0:01:36.3]} 14... c6 {[%clk 0:02:05.3]} 15. Nh4 {[%clk 0:01:30.9]}
15... b5 {[%clk 0:02:00.3]} 16. Bd3 {[%clk 0:01:30.7]} 16... b4 {[%clk
0:01:59.3]} 17. Nb1 {[%clk 0:01:07.6]} 17... g6 {[%clk 0:01:50.3]} 18. Bh6
{[%clk 0:00:58.3]} 18... Nc5 {[%clk 0:01:48.9]} 19. Bxf8 {[%clk 0:00:57.6]}
19... Qxf8 {[%clk 0:01:43.3]} 20. Nd2 {[%clk 0:00:56.2]} 20... Ne6 {[%clk
0:01:42.6]} 21. Bc4 {[%clk 0:00:52.7]} 21... Nf4 {[%clk 0:01:32.8]} 22. Qf3
{[%clk 0:00:51.3]} 22... Nd7 {[%clk 0:01:18.1]} 23. Ng2 {[%clk 0:00:47.7]} 23...
Nxg2 {[%clk 0:01:12.5]} 24. Qxg2 {[%clk 0:00:47.7]} 24... Nc5 {[%clk 0:01:10.7]}
25. Nb3 {[%clk 0:00:47]} 25... Ne6 {[%clk 0:01:07.1]} 26. Bxe6 {[%clk
0:00:44.8]} 26... fxe6 {[%clk 0:01:06.6]} 27. Qg3 {[%clk 0:00:42.3]} 27... Bg5+
{[%clk 0:01:03.2]} 28. Kb1 {[%clk 0:00:42.3]} 28... Bf4 {[%clk 0:01:02.9]} 29.
Qd3 {[%clk 0:00:42.4]} 29... c5 {[%clk 0:00:58.9]} 30. Qc4 {[%clk 0:00:40.7]}
30... Rc8 {[%clk 0:00:45.6]} 31. Rd7 {[%clk 0:00:34.9]} 31... Ba8 {[%clk
0:00:37.7]} 32. Qxe6+ {[%clk 0:00:32.8]} 32... Kh8 {[%clk 0:00:37.1]} 33. Rhd1
{[%clk 0:00:31.9]} 33... c4 {[%clk 0:00:31.6]} 34. Rf7 {[%clk 0:00:31]} 34...
cxb3 {[%clk 0:00:18.9]} 35. Rxf8+ {[%clk 0:00:23.4]} 35... Rxf8 {[%clk
0:00:15.4]} 36. axb3 {[%clk 0:00:23.4]} 36... Bxe4 {[%clk 0:00:14.3]} 37. Qe7
{[%clk 0:00:21.3]} 37... Rc8 {[%clk 0:00:12.3]} 38. Qf6+ {[%clk 0:00:21.6]}
38... Kg8 {[%clk 0:00:11.6]} 39. Qe6+ {[%clk 0:00:22.5]} 39... Kg7 {[%clk
0:00:10.6]} 40. Qxc8 {[%clk 0:00:23.4]} 1-0

[Event "*** SCC Grand Prix: Titled Tuesday Blitz"]
[Site "Chess.com"]
[Date "2020.10.13"]
[Round "8"]
[White "MatyChess1"]
[Black "yourstrulyme"]
[Result "0-1"]
[WhiteElo "2563"]
[BlackElo "2452"]
[TimeControl "180+1"]
[EndTime "11:33:48 PDT"]
[Termination "yourstrulyme won on time"]

1. e4 {[%clk 0:03:00]} 1... b6 {[%clk 0:02:57.9]} 2. d4 {[%clk 0:02:59.6]} 2...
Bb7 {[%clk 0:02:58.5]} 3. Bd3 {[%clk 0:03:00.2]} 3... Nf6 {[%clk 0:02:57.9]} 4.
Qe2 {[%clk 0:03:00]} 4... Nc6 {[%clk 0:02:57.5]} 5. c3 {[%clk 0:02:59.6]} 5...
e5 {[%clk 0:02:57.7]} 6. Nf3 {[%clk 0:03:00.2]} 6... d6 {[%clk 0:02:57.8]} 7.
Ba6 {[%clk 0:02:53.3]} 7... Qc8 {[%clk 0:02:56.6]} 8. Bxb7 {[%clk 0:02:51.8]}
8... Qxb7 {[%clk 0:02:57.5]} 9. O-O {[%clk 0:02:52.1]} 9... Be7 {[%clk
0:02:54.9]} 10. dxe5 {[%clk 0:02:49.6]} 10... Nxe5 {[%clk 0:02:52.8]} 11. Nxe5
{[%clk 0:02:48.1]} 11... dxe5 {[%clk 0:02:53.7]} 12. Re1 {[%clk 0:02:48.4]}
12... O-O {[%clk 0:02:46.7]} 13. Bg5 {[%clk 0:02:48.3]} 13... Rad8 {[%clk
0:02:44.8]} 14. Nd2 {[%clk 0:02:47.5]} 14... h6 {[%clk 0:02:19.3]} 15. Bh4
{[%clk 0:02:45.9]} 15... Rfe8 {[%clk 0:02:06.2]} 16. Nc4 {[%clk 0:02:44.6]}
16... Nd7 {[%clk 0:01:29.4]} 17. Bg3 {[%clk 0:02:44.4]} 17... f6 {[%clk
0:01:14.9]} 18. h4 {[%clk 0:02:26.2]} 18... Nc5 {[%clk 0:01:14.4]} 19. h5 {[%clk
0:02:17.8]} 19... Qc6 {[%clk 0:01:10.5]} 20. b3 {[%clk 0:01:14.7]} 20... a5
{[%clk 0:01:06]} 21. Rad1 {[%clk 0:01:09.1]} 21... Rxd1 {[%clk 0:00:54.9]} 22.
Qxd1 {[%clk 0:01:10]} 22... Rd8 {[%clk 0:00:48.5]} 23. Qg4 {[%clk 0:01:08.2]}
23... a4 {[%clk 0:00:40.8]} 24. Kh2 {[%clk 0:00:09.5]} 24... axb3 {[%clk
0:00:40.1]} 25. axb3 {[%clk 0:00:10.4]} 25... Nxb3 {[%clk 0:00:40.2]} 26. Ne3
{[%clk 0:00:10.5]} 26... Bf8 {[%clk 0:00:32.2]} 27. Nf5 {[%clk 0:00:10.5]} 27...
Kh8 {[%clk 0:00:25]} 28. f3 {[%clk 0:00:10.5]} 28... Qxc3 {[%clk 0:00:20.5]} 29.
Qg6 {[%clk 0:00:06.2]} 29... Qc6 {[%clk 0:00:17.6]} 30. Bf2 {[%clk 0:00:03.2]}
30... Qe8 {[%clk 0:00:17]} 31. Qg4 {[%clk 0:00:03.2]} 31... c5 {[%clk
0:00:16.4]} 32. Rb1 {[%clk 0:00:03.1]} 32... c4 {[%clk 0:00:15.2]} 33. Bxb6
{[%clk 0:00:01.9]} 33... Rb8 {[%clk 0:00:15]} 34. Be3 {[%clk 0:00:02.8]} 34...
c3 {[%clk 0:00:14.7]} 0-1